[Event "TUR-ch Veterans 2020"]
[Site "Antalya-Belek"]
[Date "2020.01.23"]
[Round "7"]
[White "Ozveren, Ali Bulent"]
[Black "Ozates, Veysel"]
[Result "0-1"]
[ECO "D15"]
[WhiteElo "1850"]
[BlackElo "1617"]
[Annotator "NA RC"]
[PlyCount "76"]
[EventDate "2020.01.19"]
[EventCountry "TUR"]
[SourceTitle "playchess.com"]
[Source "ChessBase"]
[SourceQuality "1"]
[TimeControl "5400+30"]

1. Nf3 {[%emt 0:00:30]} ({Predecessor:} 1. d4 Nf6 2. c4 e6 3. g3 c6 4. Nf3 d5 5. Bg2 dxc4 6. O-O b5 7. Ne5 Bb7 8. Nc3 {½-½ (40) Cuevas Rodriguez,M (2240)-Sulistya,M (2190) Moscow 1994}) 1... d5 {[%emt 0:00:30]} 2. d4 {[%emt 0:00:00]} Nf6 {[%emt 0:00:30]} 3. c4 {[%emt 0:00:00]} c6 {[%emt 0:00:00]} 4. Nc3 {[%emt 0:00:00]} dxc4 {[%emt 0:00:00]} 5. Ne5 {[%emt 0:01:00]} b5 {[%emt 0:03:30]} 6. g3 {[%emt 0:04:30]} Bb7 {[%emt 0:00:30]} 7. Bg2 {[%emt 0:00:00]} Qc7 $146 {[%emt 0:01:30] D15: Slav Defence: 4 Nc3 a6 and gambit lines after 4 Nc3 dxc4} (7... a6 8. O-O e6 9. a4 Nd5 10. e4 Nxc3 11. bxc3 Nd7 12. Bf4 Be7 13. Qg4 g6 14. Nxd7 Qxd7 15. Bh6 f6 16. axb5 cxb5 17. Rfe1 e5 18. Qxd7+ Kxd7 19. dxe5 fxe5 {½-½ (51) Kortschnoj,V (2602)-Wang,Y (2704) Amsterdam 2008}) 8. O-O {[%emt 0:01:00]} e6 {[%emt 0:01:30]} 9. a4 {[%emt 0:02:30]} a6 {[%emt 0:03:30]} 10. axb5 {[%emt 0:00:00]} (10. Bf4 $1 $14 Qc8 11. e3) 10... cxb5 {[%emt 0:01:30]} 11. Nxb5 {[%emt 0:00:00]} axb5 {[%emt 0:04:30]} 12. Rxa8 {[%emt 0:00:30]} Bxg2 {[%emt 0:01:30] [#]} 13. Rxb8+ $1 {[%emt 0:00:30]} Qxb8 {[%emt 0:00:30]} 14. Kxg2 {[%emt 0:00:30] [#]} Bd6 $1 {[%emt 0:00:30]} 15. Bf4 {[%emt 0:01:30]} O-O {[%emt 0:01:30]} 16. f3 {[%emt 0:06:30]} Qc7 {[%emt 0:04:30]} ({Black should try} 16... Nd5 $17 17. Qc1 (17. Nd7 $2 Bxf4 18. Qa1 Qe8 $19) 17... Qb6) 17. Qd2 {[%emt 0:04:30]} Nd5 {[%emt 0:01:30]} 18. e4 $2 {[%emt 0:01:30]} (18. Rc1 $17 {keeps fighting.}) 18... Nxf4+ {[%emt 0:04:30]} 19. gxf4 {[%emt 0:00:30]} f6 {[%emt 0:00:30]} 20. Ng4 {[%emt 0:00:00]} Bxf4 {[%emt 0:00:00]} 21. Qc2 {[%emt 0:00:00]} h5 {[%emt 0:01:00]} 22. Nf2 {[%emt 0:01:30]} Bxh2 {[%emt 0:00:30]} 23. e5 {[%emt 0:01:30]} Bf4 {[%emt 0:00:30]} 24. exf6 {[%emt 0:00:30]} Rxf6 {[%emt 0:01:30]} 25. Ne4 $19 {[%emt 0:04:30]} (25. Ra1) 25... Rg6+ {[%emt 0:01:30]} 26. Kf2 {[%emt 0:01:30]} Qd8 {[%emt 0:07:30]} 27. Qd1 {[%emt 0:00:30]} Qh4+ {[%emt 0:01:30]} 28. Ke2 {[%emt 0:00:00]} Rg2+ {[%emt 0:04:30]} 29. Rf2 {[%emt 0:00:00]} Rxf2+ {[%emt 0:00:30]} 30. Nxf2 {[%emt 0:00:30]} Qh2 {[%emt 0:04:30]} 31. Qa1 {[%emt 0:00:30]} Bg3 {[%emt 0:02:30]} 32. Qa8+ {[%emt 0:00:00]} Kh7 {[%emt 0:01:30]} 33. Qe4+ {[%emt 0:00:00]} g6 {[%emt 0:00:00]} 34. Qb7+ {[%emt 0:02:30]} Kh6 {[%emt 0:00:00]} 35. Qxb5 {[%emt 0:00:30]} Qxf2+ {[%emt 0:00:30]} 36. Kd1 {[%emt 0:00:00]} Qxd4+ {[%emt 0:00:30]} 37. Kc1 {[%emt 0:00:00]} Bf4+ {[%emt 0:00:30]} 38. Kb1 {[%emt 0:00:30]} Qd1+ {[%emt 0:00:30]} 0-1

[Event "TUR-ch Veterans 2020"]
[Site "Antalya-Belek"]
[Date "2020.01.23"]
[Round "7"]
[White "Karadag, Eflatun Cem"]
[Black "Buker, Muhittin"]
[Result "1/2-1/2"]
[ECO "C56"]
[WhiteElo "1801"]
[BlackElo "2008"]
[Annotator "NA RC"]
[PlyCount "165"]
[EventDate "2020.01.19"]
[EventCountry "TUR"]
[SourceTitle "playchess.com"]
[Source "ChessBase"]
[SourceQuality "1"]
[TimeControl "5400+30"]

1. e4 {[%emt 0:03:30]} e5 {[%emt 0:00:30]} 2. d4 {[%emt 0:01:30]} exd4 {[%emt 0:00:30]} 3. Nf3 {[%emt 0:00:30]} Nc6 {[%emt 0:01:30]} 4. Bc4 {[%emt 0:00:30]} Nf6 {[%emt 0:01:30]} 5. e5 {[%emt 0:00:30]} d5 {[%emt 0:00:30]} 6. Bb5 {[%emt 0:00:30]} Ne4 {[%emt 0:00:00]} 7. Nxd4 {[%emt 0:00:30]} Bd7 {[%emt 0:00:00]} 8. Bxc6 {[%emt 0:00:00]} bxc6 {[%emt 0:00:30]} 9. O-O {[%emt 0:00:00]} c5 {[%emt 0:00:30]} 10. Nb3 {[%emt 0:04:30] C56: Two Knights: 4 d4 exd4 5 0-0 Nxe4} (10. Ne2 Bc6 11. f3 Ng5 12. f4 Ne4 13. Nbc3 f5 14. Nxe4 fxe4 15. f5 Qe7 16. Bf4 O-O-O 17. Qd2 d4 {0-1 (35) Pert,N (2570)-Howell,D (2663) Bournemouth 2016}) 10... Bc6 {[%emt 0:00:30]} (10... c6 $14) 11. N1d2 $2 {[%emt 0:01:30]} ({White should play} 11. Na5 $18) 11... Nxd2 $146 {[%emt 0:01:30]} ({Predecessor:} 11... Ng5 12. f4 Ne6 13. f5 Ng5 14. e6 Be7 15. h4 Ne4 16. exf7+ Kf8 17. Nxe4 dxe4 {1-0 (29) Medina Masdeu,R (1923)-Serra Canals,O (1775) Salobrena 2012}) 12. Bxd2 {[%emt 0:01:30]} Rb8 {[%emt 0:06:30]} 13. c3 {[%emt 0:01:30]} Be7 {[%emt 0:05:30]} 14. Be3 {[%emt 0:02:30]} d4 {[%emt 0:14:30]} 15. cxd4 {[%emt 0:01:30]} Qd5 $1 {[%emt 0:00:30]} 16. Qg4 {[%emt 0:00:30]} h5 {[%emt 0:03:30]} (16... f5 $11 17. Qf3 (17. Qxg7 $2 Rg8 $19) 17... Qxf3 18. gxf3 Bxf3) 17. Qxg7 {[%emt 0:03:30]} Kd7 {[%emt 0:01:30] [#]} 18. Qg3 $2 {[%emt 0:01:30]} ({But not} 18. Nxc5+ $2 Bxc5 19. f3 Be7 $19) (18. e6+ $1 $16 {and life is bright.} Kxe6 19. f3 (19. dxc5 $2 Rbg8 $19) (19. Nxc5+ $2 Bxc5 20. Qe5+ Qxe5 $19)) 18... Rhg8 {[%emt 0:00:30]} 19. Qh3+ {[%emt 0:00:00] Double Attack} Kd8 {[%emt 0:01:30]} 20. f3 {[%emt 0:01:00]} c4 {[%emt 0:00:00]} 21. Nd2 {[%emt 0:09:30]} (21. Nc5 $16) 21... Rxb2 {[%emt 0:00:00]} 22. Rf2 {[%emt 0:08:30]} c3 {[%emt 0:12:30]} 23. Nf1 {[%emt 0:03:30]} h4 {[%emt 0:03:30]} 24. Qf5 {[%emt 0:04:30]} Qc4 {[%emt 0:14:30]} 25. Rb1 {[%emt 0:05:30]} Qxa2 {[%emt 0:10:30]} 26. Rbxb2 {[%emt 0:03:30]} cxb2 {[%emt 0:00:30]} 27. Qc2 {[%emt 0:01:30]} Bxf3 {[%emt 0:01:30]} 28. Qxb2 {[%emt 0:00:30]} Qxb2 {[%emt 0:00:07]} 29. Rxb2 {[%emt 0:00:30]} Kc8 {[%emt 0:00:11]} 30. g3 {[%emt 0:04:30]} h3 {[%emt 0:01:52]} 31. Kf2 {[%emt 0:01:30]} Bb7 {[%emt 0:02:23]} 32. Ra2 {[%emt 0:01:30]} a6 {[%emt 0:00:19]} 33. Bf4 {[%emt 0:01:30]} Rd8 {[%emt 0:00:35]} 34. Ke3 {[%emt 0:03:30]} c5 {[%emt 0:00:19]} 35. Rc2 {[%emt 0:01:30]} Rxd4 {[%emt 0:00:16]} 36. Nd2 {[%emt 0:01:30]} Bd5 {[%emt 0:00:41]} 37. Nf3 {[%emt 0:00:30]} Re4+ {[%emt 0:01:43]} 38. Kf2 {[%emt 0:00:30]} Ra4 {[%emt 0:01:58]} 39. Ng5 {[%emt 0:03:30]} Kd7 {[%emt 0:04:15]} 40. Nxh3 {[%emt 0:01:30]} Ra1 {[%emt 0:00:11]} 41. Bg5 {[%emt 0:02:30]} Bf8 {[%emt 0:00:32]} 42. Nf4 {[%emt 0:02:38]} Ra2 {[%emt 0:00:08]} 43. Rxa2 {[%emt 0:00:47]} Bxa2 {[%emt 0:00:02]} 44. Ke3 {[%emt 0:00:35]} a5 {[%emt 0:01:02]} 45. Kd3 {[%emt 0:01:50]} Bb1+ {[%emt 0:00:51]} 46. Kc3 {[%emt 0:02:33]} a4 {[%emt 0:01:25]} 47. Kb2 {[%emt 0:00:42]} Be4 {[%emt 0:00:11]} 48. Ne2 {[%emt 0:02:18]} Ke6 {[%emt 0:00:32]} 49. Bf6 {[%emt 0:00:52]} Bc6 {[%emt 0:01:37]} 50. g4 $1 {[%emt 0:03:44]} Kd5 {[%emt 0:01:28]} 51. Nc3+ {[%emt 0:01:03]} Kc4 {[%emt 0:00:21]} 52. g5 {[%emt 0:02:27]} Kd3 {[%emt 0:00:23] [#]} 53. e6 $1 {[%emt 0:00:37] [#]} fxe6 $2 {[%emt 0:06:41]} (53... a3+ $1 $11 {[%mdl 512]} 54. Kxa3 Be8) 54. g6 {[%emt 0:00:16]} Kc4 {[%emt 0:02:08]} 55. g7 {[%emt 0:00:09]} Bxg7 {[%emt 0:00:00]} 56. Bxg7 {[%emt 0:00:01]} Kb4 {[%emt 0:00:00]} 57. h4 {[%emt 0:00:50]} Be8 {[%emt 0:00:07]} 58. Na2+ {[%emt 0:02:08]} Kc4 {[%emt 0:00:25]} 59. Ka3 {[%emt 0:00:45]} Kd5 {[%emt 0:00:39]} 60. Nc3+ {[%emt 0:00:21]} Kc4 {[%emt 0:00:51]} 61. Nxa4 {[%emt 0:00:39]} Kd5 {[%emt 0:00:05]} 62. Nc3+ {[%emt 0:00:00]} Kc4 {[%emt 0:00:19]} 63. Kb2 {[%emt 0:00:30]} Bg6 {[%emt 0:00:09]} 64. Kc1 {[%emt 0:00:45]} Kd3 {[%emt 0:00:09]} 65. Kd1 {[%emt 0:00:00]} Bh5+ {[%emt 0:00:16]} 66. Ke1 {[%emt 0:02:35]} Ke3 {[%emt 0:00:02]} 67. Nd1+ {[%emt 0:00:53]} Kf3 {[%emt 0:00:02]} 68. Kd2 {[%emt 0:00:10]} Kf4 {[%emt 0:00:51]} 69. Ne3 {[%emt 0:01:39]} e5 {[%emt 0:00:06]} 70. Bh6+ {[%emt 0:00:11]} Kf3 {[%emt 0:00:36]} 71. Kd3 {[%emt 0:00:55]} Bf7 {[%emt 0:00:11]} 72. Kc3 {[%emt 0:00:00]} Ke4 {[%emt 0:00:37]} 73. Nc4 {[%emt 0:00:36]} Bh5 {[%emt 0:00:20]} 74. Bg7 {[%emt 0:00:36]} Be2 {[%emt 0:00:32]} 75. Nxe5 {[%emt 0:00:43]} Kd5 {[%emt 0:01:33]} 76. Kd2 {[%emt 0:00:11]} Bh5 {[%emt 0:00:00]} 77. Ke3 {[%emt 0:00:04]} c4 {[%emt 0:00:13]} 78. Nd7 {[%emt 0:00:50]} Ke6 {[%emt 0:00:48]} 79. Nb6 {[%emt 0:00:15]} Kf5 {[%emt 0:01:16]} 80. Nxc4 {[%emt 0:00:22]} Kg4 {[%emt 0:00:12]} 81. Bf6 {[%emt 0:00:22]} Be8 {[%emt 0:00:15]} 82. Ne5+ $18 {[%emt 0:01:15]} Kf5 {[%emt 0:00:16]} 83. Kd4 {[%emt 0:00:34]} 1/2-1/2

[Event "TUR-ch Veterans 2020"]
[Site "Antalya-Belek"]
[Date "2020.01.23"]
[Round "7"]
[White "Bagci, Hikmet"]
[Black "Buyukgokcesu, Tahir Sami"]
[Result "1-0"]
[ECO "B33"]
[WhiteElo "1603"]
[BlackElo "1618"]
[Annotator "NA RC"]
[PlyCount "65"]
[EventDate "2020.01.19"]
[EventCountry "TUR"]
[SourceTitle "playchess.com"]
[Source "ChessBase"]
[SourceQuality "1"]
[TimeControl "5400+30"]

1. e4 {[%emt 0:00:30]} c5 {[%emt 0:00:30]} 2. Nf3 {[%emt 0:00:30]} Nc6 {[%emt 0:00:30]} 3. d4 {[%emt 0:01:30]} cxd4 {[%emt 0:00:30]} 4. Nxd4 {[%emt 0:00:00]} Nf6 {[%emt 0:00:30]} 5. Nc3 {[%emt 0:00:00]} e5 {[%emt 0:02:30]} 6. Ndb5 {[%emt 0:00:00]} d6 {[%emt 0:00:00]} 7. Bg5 {[%emt 0:00:00]} a6 {[%emt 0:01:00]} 8. Na3 {[%emt 0:00:00]} Be7 {[%emt 0:00:30]} 9. Bxf6 {[%emt 0:00:00]} gxf6 {[%emt 0:00:30]} 10. Nd5 {[%emt 0:00:30]} b5 {[%emt 0:03:30]} 11. c3 {[%emt 0:00:00]} Be6 {[%emt 0:04:30]} 12. Nc2 {[%emt 0:00:00]} f5 {[%emt 0:02:30]} 13. exf5 {[%emt 0:00:30]} Bxf5 {[%emt 0:00:30]} 14. Nce3 {[%emt 0:00:30]} Be6 {[%emt 0:01:30]} 15. Bd3 {[%emt 0:01:30]} Rc8 {[%emt 0:04:30]} 16. a4 {[%emt 0:06:30]} Rb8 {[%emt 0:04:30]} 17. axb5 {[%emt 0:01:30]} axb5 {[%emt 0:00:30]} 18. b4 {[%emt 0:04:30]} Bg5 {[%emt 0:03:30]} 19. Qe2 {[%emt 0:01:30]} Bxe3 {[%emt 0:01:30]} 20. Nxe3 {[%emt 0:00:30]} Qb6 {[%emt 0:02:30]} 21. O-O {[%emt 0:01:30]} d5 {[%emt 0:04:30]} 22. Bf5 {[%emt 0:03:30]} Ke7 {[%emt 0:04:30]} 23. Qh5 {[%emt 0:02:30]} Rbg8 {[%emt 0:04:30]} 24. Rfd1 {[%emt 0:01:30]} d4 {[%emt 0:02:30]} 25. Bxe6 {[%emt 0:00:30]} fxe6 {[%emt 0:00:30]} 26. Ng4 {[%emt 0:07:30]} Kd6 {[%emt 0:04:30]} 27. cxd4 {[%emt 0:01:30]} exd4 {[%emt 0:00:30]} 28. Nf6 {[%emt 0:00:30]} Rf8 {[%emt 0:05:30]} 29. Ne4+ {[%emt 0:00:30]} Kc7 {[%emt 0:04:30]} 30. Qh6 {[%emt 0:04:30]} Re8 {[%emt 0:10:30]} 31. Qg7+ {[%emt 0:00:30]} Kb8 {[%emt 0:00:30]} 32. Nc5 {[%emt 0:00:30]} Kc8 {[%emt 0:03:30]} 33. Ra8+ {[%emt 0:01:30]} 1-0

[Event "TUR-ch Veterans 2020"]
[Site "Antalya-Belek"]
[Date "2020.01.23"]
[Round "7"]
[White "Atas, Remzi"]
[Black "Oney, Riza"]
[Result "0-1"]
[ECO "D13"]
[WhiteElo "1498"]
[BlackElo "1771"]
[Annotator "NA RC"]
[PlyCount "118"]
[EventDate "2020.01.19"]
[EventCountry "TUR"]
[SourceTitle "playchess.com"]
[Source "ChessBase"]
[SourceQuality "1"]
[TimeControl "5400+30"]

1. d4 {[%emt 0:00:30]} d5 {[%emt 0:01:30]} 2. c4 {[%emt 0:00:30]} c6 {[%emt 0:00:30]} 3. Nc3 {[%emt 0:00:30]} Nf6 {[%emt 0:00:00]} 4. Nf3 {[%emt 0:00:00]} Nbd7 {[%emt 0:00:00]} 5. cxd5 {[%emt 0:00:00]} cxd5 {[%emt 0:00:00]} 6. Bf4 {[%emt 0:00:30]} e6 {[%emt 0:00:00]} 7. e3 {[%emt 0:00:30]} Bb4 {[%emt 0:00:30]} 8. Nd2 {[%emt 0:00:30]} a6 {[%emt 0:00:30]} 9. Bd3 {[%emt 0:00:30]} O-O {[%emt 0:01:30]} 10. O-O {[%emt 0:00:30]} Re8 {[%emt 0:00:30]} 11. Rc1 {[%emt 0:01:30]} Nf8 {[%emt 0:00:30]} 12. a3 {[%emt 0:01:30]} Bd6 {[%emt 0:00:00]} 13. Bxd6 {[%emt 0:00:30]} Qxd6 {[%emt 0:00:00]} 14. f4 {[%emt 0:01:30]} Bd7 {[%emt 0:00:30]} 15. Nf3 {[%emt 0:01:30]} Rec8 {[%emt 0:00:30]} 16. Ne5 {[%emt 0:00:30]} Be8 {[%emt 0:02:30]} 17. Qf3 {[%emt 0:01:30]} Rc7 {[%emt 0:00:30]} 18. Ne2 {[%emt 0:00:30]} Rac8 {[%emt 0:00:00]} 19. Rxc7 {[%emt 0:00:30]} Rxc7 {[%emt 0:00:00]} 20. g4 {[%emt 0:00:30]} N6d7 {[%emt 0:00:30]} 21. h4 {[%emt 0:08:30]} Nb6 {[%emt 0:02:30]} 22. g5 {[%emt 0:02:30]} Na4 {[%emt 0:00:30]} 23. b4 {[%emt 0:01:30]} Nb2 {[%emt 0:01:30]} 24. Bb1 {[%emt 0:00:30]} Bb5 {[%emt 0:00:30]} 25. Re1 {[%emt 0:01:30]} Nc4 {[%emt 0:02:30]} 26. Nxc4 {[%emt 0:01:30]} Bxc4 {[%emt 0:00:30]} 27. Ng3 {[%emt 0:02:30]} a5 {[%emt 0:01:30]} 28. f5 {[%emt 0:02:30]} axb4 {[%emt 0:01:30]} 29. axb4 {[%emt 0:00:30]} Qxb4 {[%emt 0:01:30]} 30. Rd1 {[%emt 0:01:30]} Qb3 {[%emt 0:43:30]} 31. Re1 {[%emt 0:03:30]} Qc3 {[%emt 0:03:30]} 32. Qf2 {[%emt 0:02:30]} Rc6 {[%emt 0:01:30]} 33. Ne2 {[%emt 0:07:30]} Qd2 {[%emt 0:01:30]} 34. Ng3 {[%emt 0:02:30]} Qxf2+ {[%emt 0:01:30]} 35. Kxf2 {[%emt 0:00:30]} Rb6 {[%emt 0:01:30]} 36. Kf3 {[%emt 0:01:30]} Rb2 {[%emt 0:01:30]} 37. Kf4 {[%emt 0:01:30]} exf5 {[%emt 0:01:30]} 38. Nxf5 {[%emt 0:01:30]} Ng6+ {[%emt 0:02:30]} 39. Kg3 {[%emt 0:00:30]} Kf8 {[%emt 0:04:30]} 40. h5 {[%emt 0:02:30]} Ne7 {[%emt 0:02:30]} 41. Nxe7 {[%emt 0:00:30]} Kxe7 {[%emt 0:00:30]} 42. Bxh7 {[%emt 0:00:30]} Re2 {[%emt 0:03:22]} 43. Rxe2 {[%emt 0:01:30]} Bxe2 {[%emt 0:00:02]} 44. h6 {[%emt 0:00:30]} gxh6 {[%emt 0:00:06]} 45. gxh6 {[%emt 0:00:30]} Kf6 {[%emt 0:00:30]} 46. Bc2 {[%emt 0:00:30]} b5 {[%emt 0:03:20]} 47. Kf4 {[%emt 0:00:30]} Bc4 {[%emt 0:00:43]} 48. h7 {[%emt 0:01:30]} Kg7 {[%emt 0:00:14]} 49. Ke5 {[%emt 0:00:30]} Ba2 {[%emt 0:00:14]} 50. e4 {[%emt 0:02:30]} dxe4 {[%emt 0:00:37]} 51. Kxe4 {[%emt 0:00:30]} b4 {[%emt 0:00:29]} 52. d5 {[%emt 0:00:00]} b3 {[%emt 0:00:00]} 53. h8=Q+ {[%emt 0:01:00]} Kxh8 {[%emt 0:00:48]} 54. d6 {[%emt 0:00:30]} bxc2 {[%emt 0:00:00]} 55. d7 {[%emt 0:00:30]} c1=Q {[%emt 0:00:00]} 56. d8=Q+ {[%emt 0:00:30]} Kh7 {[%emt 0:00:00]} 57. Qh4+ {[%emt 0:03:30]} Qh6 {[%emt 0:01:32]} 58. Qf2 {[%emt 0:00:00]} Qe6+ {[%emt 0:00:31]} 59. Kd4 {[%emt 0:01:00]} Qb6+ {[%emt 0:00:18]} 0-1

[Event "TUR-ch Veterans 2020"]
[Site "Antalya-Belek"]
[Date "2020.01.24"]
[Round "8"]
[White "Kocak, Sabri"]
[Black "Pekun, Cem"]
[Result "0-1"]
[ECO "B84"]
[WhiteElo "2086"]
[BlackElo "2061"]
[Annotator "NA RC"]
[PlyCount "64"]
[EventDate "2020.01.19"]
[EventCountry "TUR"]
[SourceTitle "playchess.com"]
[Source "ChessBase"]
[SourceQuality "1"]
[TimeControl "5400+30"]

1. e4 {[%emt 0:00:30]} c5 {[%emt 0:00:30]} 2. Nf3 {[%emt 0:00:00]} e6 {[%emt 0:01:30]} 3. d4 {[%emt 0:00:00]} cxd4 {[%emt 0:00:30]} 4. Nxd4 {[%emt 0:00:30]} a6 {[%emt 0:00:30]} 5. Nc3 {[%emt 0:00:30]} Qc7 {[%emt 0:00:30]} 6. Be2 {[%emt 0:00:30]} b5 {[%emt 0:00:30]} 7. f4 {[%emt 0:00:30]} d6 {[%emt 0:01:30]} 8. Bf3 {[%emt 0:01:30]} Bb7 {[%emt 0:00:30]} 9. O-O {[%emt 0:04:30]} Nd7 {[%emt 0:01:30]} 10. Kh1 {[%emt 0:02:30]} Ngf6 {[%emt 0:00:30]} 11. a3 {[%emt 0:06:30]} Be7 {[%emt 0:00:30]} 12. Qe1 {[%emt 0:05:30]} O-O {[%emt 0:06:30]} 13. e5 {[%emt 0:08:30]} Ne8 {[%emt 0:04:30]} 14. Ndxb5 $2 {[%emt 0:07:30]} (14. Bxb7 $11 Qxb7 15. Nf3) 14... axb5 {[%emt 0:01:30]} 15. Nxb5 {[%emt 0:00:30]} Qb6 {[%emt 0:02:30]} 16. Bxb7 {[%emt 0:03:30]} Qxb7 {[%emt 0:02:30]} 17. c4 {[%emt 0:02:30]} (17. Qe2 $142) 17... Rc8 {[%emt 0:14:30]} 18. Qe2 $19 {[%emt 0:07:30]} d5 {[%emt 0:11:30]} 19. cxd5 {[%emt 0:01:30]} Qxd5 {[%emt 0:00:30]} 20. Rd1 {[%emt 0:01:30]} Qb7 {[%emt 0:03:30]} 21. b4 {[%emt 0:01:30]} Nb6 {[%emt 0:01:30]} 22. Bb2 {[%emt 0:15:30]} Nc4 {[%emt 0:06:30]} 23. Nd4 {[%emt 0:00:30]} Nxb2 {[%emt 0:02:30]} 24. Qxb2 {[%emt 0:00:30]} Nc7 {[%emt 0:01:30]} 25. f5 {[%emt 0:04:30]} Nd5 {[%emt 0:08:30]} 26. fxe6 {[%emt 0:04:30]} Ne3 {[%emt 0:02:30]} 27. Rdc1 {[%emt 0:05:07]} Rxc1+ {[%emt 0:04:30]} 28. Rxc1 {[%emt 0:00:16]} Qd5 {[%emt 0:03:22]} 29. exf7+ {[%emt 0:10:27]} Qxf7 {[%emt 0:04:24]} 30. Nf3 {[%emt 0:01:25]} h6 {[%emt 0:00:30]} 31. Rc3 {[%emt 0:02:28]} Nd1 {[%emt 0:00:20]} 32. e6 {[%emt 0:01:01]} Qf6 {[%emt 0:00:29]} 0-1

[Event "TUR-ch Veterans 2020"]
[Site "Antalya-Belek"]
[Date "2020.01.24"]
[Round "8"]
[White "Tofan, Ibrahim"]
[Black "Karadag, Eflatun Cem"]
[Result "1-0"]
[ECO "C45"]
[WhiteElo "2082"]
[BlackElo "1801"]
[Annotator "NA RC"]
[PlyCount "65"]
[EventDate "2020.01.19"]
[EventCountry "TUR"]
[SourceTitle "playchess.com"]
[Source "ChessBase"]
[SourceQuality "1"]
[TimeControl "5400+30"]

1. e4 {[%emt 0:00:30]} e5 {[%emt 0:02:30]} 2. Nf3 {[%emt 0:00:00]} Nc6 {[%emt 0:01:30]} 3. d4 {[%emt 0:00:00]} exd4 {[%emt 0:00:00]} 4. Nxd4 {[%emt 0:00:30]} Bc5 {[%emt 0:00:00]} 5. Nf5 {[%emt 0:00:30]} Qf6 {[%emt 0:06:30]} 6. Nc3 {[%emt 0:00:00]} Nge7 {[%emt 0:02:30]} 7. Ne3 {[%emt 0:00:00]} d6 {[%emt 0:04:30]} 8. Bd3 {[%emt 0:00:30]} Ne5 {[%emt 0:02:30] C45: Scotch Game} 9. O-O {[%emt 0:00:30]} Be6 {[%emt 0:01:30]} (9... c6 10. Kh1 h5 11. f4 Ng4 12. Qf3 Qh4 13. h3 Ng6 {½-½ (13) Gasanov,E (2440)-Belikov,V (2488) Alushta 2001}) 10. f4 {[%emt 0:03:30]} Nxd3 {[%emt 0:08:30]} (10... Ng4 $5 11. Qe1 Nc6 $14) 11. cxd3 {[%emt 0:00:00]} O-O {[%emt 0:02:30]} ({Better is} 11... g6 $14) 12. Kh1 {[%emt 0:00:00]} (12. f5 $142) 12... Bxe3 $146 {[%emt 0:03:30]} ({Predecessor:} 12... c6 13. f5 Bd7 14. Ng4 Qh4 15. Rf4 Rad8 16. g3 {1-0 (38) Aslanhan,H (1273)-Kayaman,M (1912) Antalya 2008}) 13. Bxe3 {[%emt 0:00:30]} Bd7 {[%emt 0:00:30]} 14. f5 {[%emt 0:03:30]} d5 {[%emt 0:02:30]} 15. Bc5 {[%emt 0:03:30]} c6 {[%emt 0:04:30]} 16. Qe2 {[%emt 0:03:30]} Rfe8 {[%emt 0:03:30]} 17. Qf2 {[%emt 0:01:30]} b6 {[%emt 0:13:30]} 18. Bd4 {[%emt 0:00:30]} Qd6 {[%emt 0:01:30]} 19. e5 $2 {[%emt 0:10:30]} (19. f6 $18) 19... Qc7 $2 {[%emt 0:01:30] [#]} (19... Qh6 $1 $14) 20. f6 $16 {[%emt 0:04:30]} (20. e6 $1 $18 {[%cal Re6d7][%mdl 512] is the precise move to win.} fxe6 {[#]} 21. f6 $1 {[%mdl 512]}) 20... Nf5 {[%emt 0:01:30]} 21. fxg7 {[%emt 0:01:30]} Be6 {[%emt 0:00:30]} 22. Rac1 {[%emt 0:04:30]} Qd7 {[%emt 0:03:30]} 23. Ne2 {[%emt 0:01:30]} Nxd4 {[%emt 0:00:30]} 24. Qxd4 {[%emt 0:00:30]} c5 {[%emt 0:00:30]} 25. Qf4 {[%emt 0:00:30]} Qe7 {[%emt 0:00:30]} 26. Ng3 {[%emt 0:00:30]} Kxg7 {[%emt 0:00:30]} 27. Nh5+ {[%emt 0:00:30]} Kh8 {[%emt 0:00:30]} 28. Nf6 {[%emt 0:00:30]} Rg8 {[%emt 0:15:30]} 29. Qh6 {[%emt 0:14:30]} Rg7 {[%emt 0:00:13]} 30. Rce1 {[%emt 0:00:30]} d4 {[%emt 0:01:15]} 31. Re4 {[%emt 0:01:30]} Qb7 {[%emt 0:00:57]} 32. Rf3 {[%emt 0:00:30]} c4 {[%emt 0:01:53]} 33. Rg3 {[%emt 0:00:00]} 1-0

[Event "TUR-ch Veterans 2020"]
[Site "Antalya-Belek"]
[Date "2020.01.24"]
[Round "8"]
[White "Buker, Muhittin"]
[Black "Onem, Cem"]
[Result "1/2-1/2"]
[ECO "E18"]
[WhiteElo "2008"]
[BlackElo "1805"]
[Annotator "NA RC"]
[PlyCount "93"]
[EventDate "2020.01.19"]
[EventCountry "TUR"]
[SourceTitle "playchess.com"]
[Source "ChessBase"]
[SourceQuality "1"]
[TimeControl "5400+30"]

1. d4 {[%emt 0:00:30]} d5 {[%emt 0:02:30]} 2. Nf3 {[%emt 0:00:30]} Nf6 {[%emt 0:00:30]} 3. c4 {[%emt 0:00:30]} e6 {[%emt 0:00:30]} 4. g3 {[%emt 0:00:30]} Be7 {[%emt 0:00:00]} 5. Bg2 {[%emt 0:00:30]} O-O {[%emt 0:00:00]} 6. O-O {[%emt 0:00:00]} b6 {[%emt 0:00:30]} 7. Nc3 {[%emt 0:00:00]} Bb7 {[%emt 0:00:30]} 8. Qa4 {[%emt 0:02:30] E18: Queen's Indian: Old Main Line (4 g3 Bb7 5 Bg2 Be7 6 0-0 0-0 7 Nc3)} dxc4 {[%emt 0:15:30]} 9. Qxc4 {[%emt 0:00:30]} a6 {[%emt 0:00:30]} (9... c5 10. Rd1 cxd4 11. Nxd4 Bxg2 12. Kxg2 Qc8 13. Qd3 Nc6 14. Nxc6 Qxc6+ 15. Qf3 {½-½ (45) So,W (2778)-Aronian,L (2764) Leuven 2018}) 10. Bf4 {[%emt 0:00:30]} Bd6 {[%emt 0:00:30]} 11. Ne5 {[%emt 0:00:30]} Bxg2 {[%emt 0:02:30]} 12. Kxg2 {[%emt 0:00:30]} b5 {[%emt 0:00:30]} 13. Qb3 $146 {[%emt 0:00:30]} ({Predecessor:} 13. Qd3 Qc8 14. Qf3 Ra7 {1-0 (50) Madebrink,L (2245)-Von Bromssen,G (2074) Tylosand 2012}) 13... Qc8 {[%emt 0:06:30]} 14. Rac1 {[%emt 0:01:30]} Qb7+ {[%emt 0:00:30]} 15. f3 {[%emt 0:00:00]} Bxe5 {[%emt 0:13:30]} 16. dxe5 {[%emt 0:06:00]} Nfd7 {[%emt 0:00:00]} 17. Ne4 {[%emt 0:00:30]} h6 {[%emt 0:15:00]} 18. g4 {[%emt 0:03:30]} Nb6 {[%emt 0:02:30]} 19. Rfd1 {[%emt 0:09:30]} (19. Bxh6 $18 {is more deadly.} Qd5 20. Bf4 (20. Rxc7 Qxb3 21. axb3 Nd5 $15)) 19... Nd5 {[%emt 0:02:30]} 20. Bg3 {[%emt 0:01:30]} Nd7 $16 {[%emt 0:01:30]} 21. Nc5 {[%emt 0:04:30]} Nxc5 {[%emt 0:02:30]} 22. Rxc5 {[%emt 0:00:00]} Rfd8 {[%emt 0:04:30]} 23. e4 {[%emt 0:01:00]} Ne7 {[%emt 0:00:00]} 24. Rc3 {[%emt 0:01:30]} Rac8 {[%emt 0:04:00]} 25. h4 {[%emt 0:04:30]} Rxd1 {[%emt 0:10:23]} 26. Qxd1 {[%emt 0:00:30]} c5 {[%emt 0:00:34]} 27. Rd3 {[%emt 0:00:00]} Nc6 {[%emt 0:00:20]} 28. Kh3 {[%emt 0:04:00]} c4 {[%emt 0:02:09]} 29. Rd6 {[%emt 0:00:00]} b4 {[%emt 0:01:25]} 30. Be1 {[%emt 0:04:00]} Nxe5 {[%emt 0:01:31]} 31. Bg3 {[%emt 0:06:30]} Nc6 {[%emt 0:01:13]} 32. Rd7 {[%emt 0:00:30]} Qb6 {[%emt 0:00:35]} 33. g5 {[%emt 0:01:30]} hxg5 {[%emt 0:00:56]} 34. hxg5 {[%emt 0:00:30]} g6 {[%emt 0:01:41]} 35. Qd2 {[%emt 0:08:30]} Qc5 {[%emt 0:01:10]} 36. Bd6 {[%emt 0:03:30]} Qa5 {[%emt 0:00:40]} 37. Qf4 {[%emt 0:00:30]} Nd8 {[%emt 0:02:52]} 38. Bc7 {[%emt 0:03:30]} Qb5 {[%emt 0:00:23]} 39. Rxd8+ {[%emt 0:01:30]} Rxd8 {[%emt 0:00:05]} 40. Bxd8 {[%emt 0:00:00]} c3 {[%emt 0:00:10]} 41. Qh2 {[%emt 0:02:00]} Qd3 {[%emt 0:01:18]} 42. bxc3 {[%emt 0:00:30]} Qxf3+ {[%emt 0:02:08]} 43. Qg3 {[%emt 0:09:30]} Qh1+ {[%emt 0:00:06]} 44. Qh2 {[%emt 0:06:06]} Qf3+ {[%emt 0:00:05]} 45. Qg3 {[%emt 0:00:20]} Qh1+ {[%emt 0:00:08]} 46. Qh2 {[%emt 0:05:47]} Qf3+ {[%emt 0:00:07]} 47. Qg3 {[%emt 0:00:19]} 1/2-1/2